{"text_format":"1","workbook":"xlsx","n_sheets":8,"sheets":["Запуск","Статусы","Список оборудования","КПУ EBS","ДП","ТРП","ТРПШ","ТРПП"],"not_rendered":{"charts":0,"images":0,"macros":0,"external_links":0,"defined_names":2,"comments":0,"pivot_tables":0},"unopened":[],"bounds":{"document_bytes":16777216,"sheet_cells":100000,"rows_first":2000,"rows_last":500,"rows_between":2000,"halvings":0,"cell_chars":16384,"cell_head_chars":4096},"cells_cut":0,"cells_raw":0,"read":"whole","date_system":"1900"}

{"sheet":"Запуск","index":0,"n_rows":31,"n_cols":7,"rows_kept":31,"cut":false,"hidden":false,"merged":[]}
["Оборудование, шифр","Количество оборудования к запуску","Текущая дата"]
["трп"]
[]
[]
[]
[]
["Шифр детали или СБ","Наименование детали или СБ","Количество ДСЕ в спецификации","Количество ДСЕ к запуску","Статус запуска ДСЕ","Остаток ДСЕ на складе","Количество запущенных в производство ДСЕ"]
[{"$f":"_xlfn._xlws.FILTER(INDIRECT(\"'\"&A2&\"'!A3:g30\"),INDIRECT(\"'\"&A2&\"'!A3:A30\")<>\"\",\"\")","v":3},0,0,0,0,0,0]
["ТРП1","Кронштейн пушки",1,0,0,0,0]
["ТРП1","Скоба",1,0,0,0,0]
["ТРП2","Кронштейн",1,0,0,0,0]
["ТРП3","Грибок",3,0,0,0,0]
["ТРП4","Полка",1,0,0,0,0]
["ТРП5","Держатель",2,0,0,0.05,0]
["ТРП6","Пластина",2,0,0,0,0]
["ТРП7","Трубка 16х1.5 08X18H10 L=800",1,0,0,0,0]
["ТРП8","Труба 48.3х1.5 08X18H10 L=780",2,0,0,0,0]
["ТРП9","Труба 42.4х1.5 08X18H10 L=315",1,0,0,0,0]
[]
[]
[]
[]
[]
[]
[]
[{"$f":"_xlfn._xlws.FILTER('КПУ EBS'!A21:Y48,'КПУ EBS'!A21:A48<>\"\",\"\")","v":""}]
[{"$f":"_xlfn._xlws.FILTER('КПУ EBS'!A22:Y49,'КПУ EBS'!A22:A49<>\"\",\"\")","v":""}]
[{"$f":"_xlfn._xlws.FILTER('КПУ EBS'!A23:Y50,'КПУ EBS'!A23:A50<>\"\",\"\")","v":""}]
[{"$f":"_xlfn._xlws.FILTER('КПУ EBS'!A24:Y51,'КПУ EBS'!A24:A51<>\"\",\"\")","v":""}]
[{"$f":"_xlfn._xlws.FILTER('КПУ EBS'!A25:Y52,'КПУ EBS'!A25:A52<>\"\",\"\")","v":""}]
[{"$f":"_xlfn._xlws.FILTER('КПУ EBS'!A26:Y53,'КПУ EBS'!A26:A53<>\"\",\"\")","v":""}]

{"sheet":"Статусы","index":1,"n_rows":9,"n_cols":1,"rows_kept":9,"cut":false,"hidden":true,"merged":[]}
["Статусы"]
["На запуске в КБ"]
["На запуске МУ"]
["Изготовление на МУ"]
["Сдано на склад ДСЕ"]
["На участке сборки"]
["Установка электрики и автоматики"]
["Испытания"]
["Упаковано"]

{"sheet":"Список оборудования","index":2,"n_rows":46,"n_cols":4,"rows_kept":46,"cut":false,"hidden":false,"merged":[]}
["Список шифров оборудовния","Список названий оборудовния"]
[]
[]
[{"$f":"IFERROR(INDEX(Оглавление,ROW()),\"\")","v":"КПУ EBS"},"Длинная печь(разогрев преформы)",null,{"$f":"IFERROR(INDEX(Оглавление,ROW()),\"\")","v":"КПУ EBS"}]
[{"$f":"IFERROR(INDEX(Оглавление,ROW()),\"\")","v":"ДП"},"Автомат выдува",null,{"$f":"IFERROR(INDEX(Оглавление,ROW()),\"\")","v":"ДП"}]
[{"$f":"IFERROR(INDEX(Оглавление,ROW()),\"\")","v":"ТРП"},"Автоматический группиратор бутылок",null,{"$f":"IFERROR(INDEX(Оглавление,ROW()),\"\")","v":"ТРП"}]
[{"$f":"IFERROR(INDEX(Оглавление,ROW()),\"\")","v":"ТРПШ"},"Автоматический группиратор бутылок",null,{"$f":"IFERROR(INDEX(Оглавление,ROW()),\"\")","v":"ТРПШ"}]
[{"$f":"IFERROR(INDEX(Оглавление,ROW()),\"\")","v":"ТРПП"},"Автоматический группиратор бутылок",null,{"$f":"IFERROR(INDEX(Оглавление,ROW()),\"\")","v":"ТРПП"}]
[{"$f":"IFERROR(INDEX(Оглавление,ROW()),\"\")","v":""}]
[{"$f":"IFERROR(INDEX(Оглавление,ROW()),\"\")","v":""}]
[{"$f":"IFERROR(INDEX(Оглавление,ROW()),\"\")","v":""}]
[{"$f":"IFERROR(INDEX(Оглавление,ROW()),\"\")","v":""}]
[{"$f":"IFERROR(INDEX(Оглавление,ROW()),\"\")","v":""}]
[{"$f":"IFERROR(INDEX(Оглавление,ROW()),\"\")","v":""}]
[{"$f":"IFERROR(INDEX(Оглавление,ROW()),\"\")","v":""}]
[{"$f":"IFERROR(INDEX(Оглавление,ROW()),\"\")","v":""}]
[{"$f":"IFERROR(INDEX(Оглавление,ROW()),\"\")","v":""}]
[{"$f":"IFERROR(INDEX(Оглавление,ROW()),\"\")","v":""}]
[{"$f":"IFERROR(INDEX(Оглавление,ROW()),\"\")","v":""}]
[{"$f":"IFERROR(INDEX(Оглавление,ROW()),\"\")","v":""}]
[{"$f":"IFERROR(INDEX(Оглавление,ROW()),\"\")","v":""}]
[{"$f":"IFERROR(INDEX(Оглавление,ROW()),\"\")","v":""}]
[{"$f":"IFERROR(INDEX(Оглавление,ROW()),\"\")","v":""}]
[{"$f":"IFERROR(INDEX(Оглавление,ROW()),\"\")","v":""}]
[{"$f":"IFERROR(INDEX(Оглавление,ROW()),\"\")","v":""}]
[{"$f":"IFERROR(INDEX(Оглавление,ROW()),\"\")","v":""}]
[{"$f":"IFERROR(INDEX(Оглавление,ROW()),\"\")","v":""}]
[{"$f":"IFERROR(INDEX(Оглавление,ROW()),\"\")","v":""}]
[{"$f":"IFERROR(INDEX(Оглавление,ROW()),\"\")","v":""}]
[{"$f":"IFERROR(INDEX(Оглавление,ROW()),\"\")","v":""}]
[{"$f":"IFERROR(INDEX(Оглавление,ROW()),\"\")","v":""}]
[{"$f":"IFERROR(INDEX(Оглавление,ROW()),\"\")","v":""}]
[{"$f":"IFERROR(INDEX(Оглавление,ROW()),\"\")","v":""}]
[{"$f":"IFERROR(INDEX(Оглавление,ROW()),\"\")","v":""}]
[{"$f":"IFERROR(INDEX(Оглавление,ROW()),\"\")","v":""}]
[{"$f":"IFERROR(INDEX(Оглавление,ROW()),\"\")","v":""}]
[{"$f":"IFERROR(INDEX(Оглавление,ROW()),\"\")","v":""}]
[{"$f":"IFERROR(INDEX(Оглавление,ROW()),\"\")","v":""}]
[{"$f":"IFERROR(INDEX(Оглавление,ROW()),\"\")","v":""}]
[]
[{"$f":"IFERROR(INDEX(Оглавление,ROW()),\"\")","v":""}]
[{"$f":"IFERROR(INDEX(Оглавление,ROW()),\"\")","v":""}]
[{"$f":"IFERROR(INDEX(Оглавление,ROW()),\"\")","v":""}]
[{"$f":"IFERROR(INDEX(Оглавление,ROW()),\"\")","v":""}]
[{"$f":"IFERROR(INDEX(Оглавление,ROW()),\"\")","v":""}]
[{"$f":"IFERROR(INDEX(Оглавление,ROW()),\"\")","v":""}]

{"sheet":"КПУ EBS","index":3,"n_rows":12,"n_cols":25,"rows_kept":12,"cut":false,"hidden":false,"merged":[]}
["Шифр детали или СБ","Наименование детали или СБ","количество","Порядок запуска","Вырубка","Ленточнопильный","Гидрообразив","Лазер","Токарный","Токарный с ЧПУ","Фрезерный","Фрезерный с ЧПУ","Общее время","Расточка","Портальный фрезерный","Сварка","Шлифовальный","Зачистка","ОТК","Получение со склада","Сборка","Гибка","Упаковка, час","Сверловка","Резьба"]
[]
[1,"Кронштейн пушки",1,null,null,null,null,null,null,null,null,null,null,null,null,null,null,null,null,null,null,null,12]
["ЕВС.01.001","Скоба",1]
["EBС.00.001","Кронштейн",1]
["EBС.00.004","Грибок",3,null,null,null,null,null,0.17,null,0.02,null,0.2,null,null,null,null,null,null,null,null,null,null,0.1,0.1]
["EBС.00.005","Полка",1]
["EBС.00.006","Держатель",2,null,null,0.05,null,null,0.25,null,0.4,null,1.1000000000000001,0.25,null,null,null,null,null,null,null,null,null,0.2,0.2]
["ЕБС.00.007","Пластина",2]
["ЕВС.01.002","Трубка 16х1.5 08X18H10 L=800",1]
["EBС.00.002","Труба 48.3х1.5 08X18H10 L=780",2]
["EBС.00.003","Труба 42.4х1.5 08X18H10 L=315",1]

{"sheet":"ДП","index":4,"n_rows":12,"n_cols":25,"rows_kept":12,"cut":false,"hidden":false,"merged":[]}
["Шифр детали или СБ","Наименование детали или СБ","количество","Порядок запуска","Вырубка","Ленточнопильный","Гидрообразив","Лазер","Токарный","Токарный с ЧПУ","Фрезерный","Фрезерный с ЧПУ","Общее время","Расточка","Портальный фрезерный","Сварка","Шлифовальный","Зачистка","ОТК","Получение со склада","Сборка","Гибка","Упаковка, час","Сверловка","Резьба"]
[]
[2,"Кронштейн пушки",1,null,null,null,null,null,null,null,null,null,null,null,null,null,null,null,null,null,null,null,12]
["ДП1","Скоба",1]
["ДП2","Кронштейн",1]
["ДП3","Грибок",3,null,null,null,null,null,0.17,null,0.02,null,0.2,null,null,null,null,null,null,null,null,null,null,0.1,0.1]
["ДП4","Полка",1]
["ДП5","Держатель",2,null,null,0.05,null,null,0.25,null,0.4,null,1.1000000000000001,0.25,null,null,null,null,null,null,null,null,null,0.2,0.2]
["ДП6","Пластина",2]
["ДП7","Трубка 16х1.5 08X18H10 L=800",1]
["ДП8","Труба 48.3х1.5 08X18H10 L=780",2]
["ДП9","Труба 42.4х1.5 08X18H10 L=315",1]

{"sheet":"ТРП","index":5,"n_rows":13,"n_cols":25,"rows_kept":13,"cut":false,"hidden":false,"merged":[]}
["Шифр детали или СБ","Наименование детали или СБ","количество","Порядок запуска","Вырубка","Ленточнопильный","Гидрообразив","Лазер","Токарный","Токарный с ЧПУ","Фрезерный","Фрезерный с ЧПУ","Общее время","Расточка","Портальный фрезерный","Сварка","Шлифовальный","Зачистка","ОТК","Получение со склада","Сборка","Гибка","Упаковка, час","Сверловка","Резьба"]
[]
[3]
["ТРП1","Кронштейн пушки",1,null,null,null,null,null,null,null,null,null,null,null,null,null,null,null,null,null,null,null,12]
["ТРП1","Скоба",1]
["ТРП2","Кронштейн",1]
["ТРП3","Грибок",3,null,null,null,null,null,0.17,null,0.02,null,0.2,null,null,null,null,null,null,null,null,null,null,0.1,0.1]
["ТРП4","Полка",1]
["ТРП5","Держатель",2,null,null,0.05,null,null,0.25,null,0.4,null,1.1000000000000001,0.25,null,null,null,null,null,null,null,null,null,0.2,0.2]
["ТРП6","Пластина",2]
["ТРП7","Трубка 16х1.5 08X18H10 L=800",1]
["ТРП8","Труба 48.3х1.5 08X18H10 L=780",2]
["ТРП9","Труба 42.4х1.5 08X18H10 L=315",1]

{"sheet":"ТРПШ","index":6,"n_rows":12,"n_cols":25,"rows_kept":12,"cut":false,"hidden":false,"merged":[]}
["Шифр детали или СБ","Наименование детали или СБ","количество","Порядок запуска","Вырубка","Ленточнопильный","Гидрообразив","Лазер","Токарный","Токарный с ЧПУ","Фрезерный","Фрезерный с ЧПУ","Общее время","Расточка","Портальный фрезерный","Сварка","Шлифовальный","Зачистка","ОТК","Получение со склада","Сборка","Гибка","Упаковка, час","Сверловка","Резьба"]
[]
[4,"Кронштейн пушки",1,null,null,null,null,null,null,null,null,null,null,null,null,null,null,null,null,null,null,null,12]
["ТРПШ1","Скоба",1]
["ТРПШ2","Кронштейн",1]
["ТРПШ3","Грибок",3,null,null,null,null,null,0.17,null,0.02,null,0.2,null,null,null,null,null,null,null,null,null,null,0.1,0.1]
["ТРПШ4","Полка",1]
["ТРПШ5","Держатель",2,null,null,0.05,null,null,0.25,null,0.4,null,1.1000000000000001,0.25,null,null,null,null,null,null,null,null,null,0.2,0.2]
["ТРПШ6","Пластина",2]
["ТРПШ7","Трубка 16х1.5 08X18H10 L=800",1]
["ТРПШ8","Труба 48.3х1.5 08X18H10 L=780",2]
["ТРПШ9","Труба 42.4х1.5 08X18H10 L=315",1]

{"sheet":"ТРПП","index":7,"n_rows":12,"n_cols":25,"rows_kept":12,"cut":false,"hidden":false,"merged":[]}
["Шифр детали или СБ","Наименование детали или СБ","количество","Порядок запуска","Вырубка","Ленточнопильный","Гидрообразив","Лазер","Токарный","Токарный с ЧПУ","Фрезерный","Фрезерный с ЧПУ","Общее время","Расточка","Портальный фрезерный","Сварка","Шлифовальный","Зачистка","ОТК","Получение со склада","Сборка","Гибка","Упаковка, час","Сверловка","Резьба"]
[]
[5,"Кронштейн пушки",1,null,null,null,null,null,null,null,null,null,null,null,null,null,null,null,null,null,null,null,12]
["ТРПП1","Скоба",1]
["ТРПП2","Кронштейн",1]
["ТРПП3","Грибок",3,null,null,null,null,null,0.17,null,0.02,null,0.2,null,null,null,null,null,null,null,null,null,null,0.1,0.1]
["ТРПП4","Полка",1]
["ТРПП5","Держатель",2,null,null,0.05,null,null,0.25,null,0.4,null,1.1000000000000001,0.25,null,null,null,null,null,null,null,null,null,0.2,0.2]
["ТРПП6","Пластина",2]
["ТРПП7","Трубка 16х1.5 08X18H10 L=800",1]
["ТРПП8","Труба 48.3х1.5 08X18H10 L=780",2]
["ТРПП9","Труба 42.4х1.5 08X18H10 L=315",1]